fUSD/lending_fUSD_20240425
["ID","MTS","AMOUNT","RATE_DAILY","PERIOD"]
[323514847,1714062221517,-3976.36318859,8.922e-05,2]
[323514848,1714062231363,-155.89745766,8.922e-05,2]
[323514849,1714062231384,-161.55154401,8.923e-05,2]
[323514850,1714062231404,-1389.54482701,8.923e-05,2]
[323514851,1714062231425,-2293.00617132,8.924e-05,2]
[323514852,1714062232150,-1325.16087531,8.924e-05,2]
[323514853,1714062232172,-1268.92,8.924e-05,2]
[323514854,1714062232193,-1405.91912469,8.924e-05,2]
[323514855,1714062233142,-2213.16087531,8.924e-05,2]
[323514856,1714062233164,-1264.89,8.985e-05,2]
[323514857,1714062233185,-214.97376772,9e-05,2]
[323514858,1714062233206,-300.67,9.023e-05,2]
[323514859,1714062233230,-6.30535697,9.053e-05,2]
[323514860,1714062234571,-193.69464303,9.053e-05,2]
[323514861,1714062256550,200.0,8.825e-05,2]
[323514862,1714062262881,3606.30535697,8.852e-05,2]
[323514863,1714062284266,-4000.0,8.851e-05,2]
[323514864,1714062284978,-4000.0,8.851e-05,2]
[323514865,1714062285913,-4000.0,8.851e-05,2]
[323514866,1714062286868,-4000.0,8.851e-05,2]
[323514867,1714062288053,-4000.0,8.851e-05,2]
[323514868,1714062289063,-2696.92862913,8.851e-05,2]
[323514869,1714062289088,-1303.07137087,8.852e-05,2]
[323514870,1714062290581,-3265.88327216,8.852e-05,2]
[323514871,1714062290601,-734.11672784,8.852e-05,2]
[323514872,1714062291544,-1118.30327216,8.852e-05,2]
[323514873,1714062296918,1783.75,8.812e-05,2]
[323514874,1714062315618,830.96,8.814e-05,2]
[323514875,1714062321758,266.98672784,8.844e-05,2]
[323514876,1714062572017,174.65,6.863e-05,2]
[323514877,1714062613483,65.19847,8.219e-05,2]
[323514878,1714062613507,705.11153,8.219e-05,2]
[323514883,1714062633057,-3903.9496532,8.629e-05,2]
[323514884,1714062633069,-680.4189447,8.629e-05,2]
[323514885,1714062633079,-121.8676746,8.63e-05,2]
[323514886,1714062633100,-84.9548958,8.63e-05,2]
[323514887,1714062633109,-706.66913894,8.63e-05,2]
[323514888,1714062633118,-155.0,8.631e-05,2]
[323514889,1714062633127,-1389.54482701,8.631e-05,2]
[323514890,1714062633136,-162.13441227,8.632e-05,2]
[323514891,1714062633146,-1870.24741268,8.632e-05,2]
[323514892,1714062633155,-210.65880734,8.634e-05,2]
[323514893,1714062633164,-200.0,8.635e-05,2]
[323514894,1714062633174,-300.0,8.678e-05,2]
[323514895,1714062633183,-150.0,8.678e-05,2]
[323514896,1714062633192,-15262.41316279,8.679e-05,2]
[323514897,1714062633218,-10679.590396,8.679e-05,2]
[323514898,1714062633229,-7663.27399228,8.679e-05,2]
[323514899,1714062633264,-316.0,8.679e-05,2]
[323514900,1714062637700,-334.90275064,8.628e-05,2]
[323514901,1714062637710,-255.48323707,8.629e-05,2]
[323514902,1714062637720,-2795.58354624,8.679e-05,2]
[323514903,1714062637816,-5731.89280292,8.679e-05,2]
[323514904,1714062637829,-700.0,8.679e-05,2]
[323514905,1714062637946,-3228.89249319,8.679e-05,2]
[323514906,1714062637960,-7610.24471485,8.679e-05,2]
[323514907,1714062637982,-8237.75038077,8.679e-05,2]
[323514908,1714062637993,-5115.87267445,8.68e-05,2]
[323514909,1714062638004,-4742.636575,8.681e-05,2]
[323514910,1714062638036,-696.59396377,8.681e-05,2]
[323514911,1714062638295,-18460.76946123,8.681e-05,2]
[323514912,1714062638304,-9499.44,8.706e-05,2]
[323514913,1714062638314,-200.0,8.712e-05,2]
[323514914,1714062638324,-301.40779328,8.712e-05,2]
[323514915,1714062638333,-154.81,8.732e-05,2]
[323514916,1714062638342,-10304.4,8.737e-05,2]
[323514917,1714062638354,-154.81,8.753e-05,2]
[323514918,1714062638364,-7491.36,8.755e-05,2]
[323514919,1714062638373,-3331.88,8.772e-05,2]
[323514920,1714062638382,-154.81,8.775e-05,2]
[323514921,1714062638392,-4964.20327216,8.844e-05,2]
[323514922,1714062638401,-749.24,8.871e-05,2]
[323514923,1714062638410,-250.0,8.928e-05,2]
[323514924,1714062638419,-1391.15,8.928e-05,2]
[323514925,1714062638429,-214.57,9.061e-05,2]
[323514926,1714062638438,-157.94,9.147e-05,2]
[323514927,1714062638447,-157.94,9.175e-05,2]
[323514928,1714062638457,-157.94,9.203e-05,2]
[323514929,1714062638466,-157.94,9.231e-05,2]
[323514930,1714062638475,-157.94,9.259e-05,2]
[323514931,1714062638485,-157.94,9.287e-05,2]
[323514932,1714062638494,-157.94,9.315e-05,2]
[323514933,1714062638503,-157.94,9.343e-05,2]
[323514934,1714062638512,-157.94,9.371e-05,2]
[323514935,1714062638521,-157.94,9.399e-05,2]
[323514936,1714062638530,-157.94,9.427e-05,2]
[323514937,1714062638539,-3059.64,9.431e-05,2]
[323514938,1714062638549,-3059.64,9.433e-05,2]
[323514939,1714062638557,-3059.64,9.436e-05,2]
[323514940,1714062638566,-3059.64,9.438e-05,2]
[323514941,1714062638575,-3059.64,9.441e-05,2]
[323514942,1714062638584,-3059.64,9.443e-05,2]
[323514943,1714062638593,-3059.64,9.446e-05,2]
[323514944,1714062638604,-3059.64,9.448e-05,2]
[323514945,1714062638613,-3059.64,9.451e-05,2]
[323514946,1714062638622,-3059.64,9.453e-05,2]
[323514947,1714062638631,-157.94,9.455e-05,2]
[323514948,1714062638640,-3059.64,9.456e-05,2]
[323514949,1714062638650,-3059.64,9.458e-05,2]
[323514950,1714062638659,-3059.64,9.461e-05,2]
[323514951,1714062638669,-3059.64,9.463e-05,2]
[323514952,1714062638678,-3059.64,9.466e-05,2]
[323514953,1714062638687,-3059.64,9.468e-05,2]
[323514954,1714062638697,-3059.64,9.471e-05,2]
[323514955,1714062638707,-3059.64,9.473e-05,2]
[323514956,1714062638716,-3059.64,9.476e-05,2]
[323514957,1714062638726,-175.02,9.476e-05,2]
[323514958,1714062638735,-3059.64,9.478e-05,2]
[323514959,1714062638745,-157.94,9.483e-05,2]
[323514960,1714062638754,-157.94,9.511e-05,2]
[323514961,1714062638763,-157.94,9.539e-05,2]
[323514962,1714062638772,-210.0,9.546e-05,2]
[323514963,1714062638782,-157.94,9.567e-05,2]
[323514964,1714062638791,-157.94,9.595e-05,2]
[323514965,1714062638801,-157.94,9.623e-05,2]
[323514966,1714062638810,-150.99,9.67e-05,2]
[323514967,1714062638819,-499.99,9.67e-05,2]
[323514968,1714062638829,-2501.61,9.67e-05,2]
[323514969,1714062638838,-7614.43,9.67e-05,2]
[323514970,1714062638850,-3107.67,9.67e-05,2]
[323514971,1714062638863,-150.99,9.997e-05,2]
[323514972,1714062638872,-3166.61562779,0.0001,2]
[323514973,1714062638882,-2736.58,0.0001,2]
[323514974,1714062638893,-621.75774865,0.0001,2]
[323514975,1714062638902,-621.75774865,0.00010098,2]
[323514976,1714062638911,-2533.72808082,0.000101,2]
[323514977,1714062638921,-300.67,0.00010151,2]
[323514978,1714062638930,-174.65,0.00010295,2]
[323514979,1714062638941,-159.87,0.00010331,2]
[323514980,1714062638951,-536.53,0.00010348,2]
[323514981,1714062638960,-770.31,0.00010396,2]
[323514982,1714062638970,-293.0,0.00010501,2]
[323514983,1714062638979,-807.41426216,0.0001069,2]
[323514984,1714062638989,-150.0,0.00010691,2]
[323514985,1714062638999,-155.0,0.00010798,2]
[323514986,1714062639009,-194.61821444,0.00010798,2]
[323514987,1714062639019,-48000.0,0.00010891,2]
[323514988,1714062639028,-7500.0,0.00010891,2]
[323514989,1714062639038,-10000.0,0.00010893,2]
[323514990,1714062639053,-800.0,0.000109,3]
[323514991,1714062639086,-1085.67,0.00010958,2]
[323514992,1714062639137,-500.0,0.00010958,2]
[323514993,1714062639188,-677.34,0.00010958,2]
[323514994,1714062639217,-500.0,0.00010958,2]
[323514995,1714062639226,-500.0,0.00010958,2]
[323514996,1714062639236,-500.0,0.00010958,2]
[323514997,1714062639245,-1108.48,0.00010958,2]
[323514998,1714062639255,-703.07,0.00010958,2]
[323514999,1714062639264,-500.0,0.00010958,2]
[323515000,1714062639273,-676.99,0.00010958,2]
[323515001,1714062639282,-5873.14,0.00010958,2]
[323515002,1714062639293,-3059.68,0.00010958,2]
[323515003,1714062639303,-500.0,0.00010958,2]
[323515004,1714062639312,-4003.22,0.00010958,2]
[323515005,1714062639322,-500.0,0.00010958,2]
[323515006,1714062639331,-500.0,0.00010958,2]
[323515007,1714062639340,-500.0,0.00010958,2]
[323515008,1714062639350,-500.0,0.00010958,2]
[323515009,1714062639359,-1696.09,0.00010958,2]
[323515010,1714062639370,-4739.01,0.00010958,2]
[323515011,1714062639379,-500.0,0.00010958,2]
[323515012,1714062639389,-677.09,0.00010958,2]
[323515013,1714062639398,-2193.77,0.00010958,2]
[323515014,1714062639407,-500.0,0.00010958,2]
[323515015,1714062639417,-4460.45,0.00010958,2]
[323515016,1714062639426,-500.0,0.00010958,2]
[323515017,1714062639435,-500.0,0.00010958,2]
[323515018,1714062639444,-826.13,0.00010958,2]
[323515019,1714062639453,-155.0,0.00010958,2]
[323515020,1714062639464,-500.0,0.00010958,2]
[323515021,1714062639474,-791.54,0.00010958,2]
[323515022,1714062639483,-651.28,0.00010958,2]
[323515023,1714062639492,-361.18,0.00010958,2]
[323515025,1714062639501,-500.0,0.00010958,2]
[323515026,1714062639510,-526.94652242,0.00010958,2]
[323515027,1714062639520,-500.0,0.00010958,2]
[323515028,1714062639529,-500.0,0.00010958,2]
[323515029,1714062639538,-16239.15,0.00010958,2]
[323515030,1714062639548,-9767.02,0.00010959,2]
[323515031,1714062639557,-150.0,0.00010959,2]
[323515032,1714062639567,-2297.4,0.00010959,2]
[323515033,1714062639576,-500.00039935,0.0001099,2]
[323515034,1714062639585,-500.0,0.0001099,2]
[323515035,1714062639595,-500.0,0.0001099,2]
[323515036,1714062639606,-488.0,0.0001099,2]
[323515037,1714062639616,-500.0,0.0001099,2]
[323515038,1714062639625,-500.0,0.0001099,2]
[323515039,1714062639634,-500.0,0.0001099,2]
[323515040,1714062639644,-1258.16,0.0001099,2]
[323515041,1714062639653,-1731.58,0.0001099,2]
[323515042,1714062639664,-620.95,0.0001099,2]
[323515043,1714062639673,-908.49,0.0001099,2]
[323515044,1714062639682,-500.0,0.0001099,2]
[323515045,1714062639692,-500.0,0.0001099,2]
[323515046,1714062639701,-500.0,0.0001099,2]
[323515047,1714062639710,-3558.91,0.0001099,2]
[323515048,1714062639719,-591.58,0.0001099,2]
[323515049,1714062639730,-809.45,0.0001099,2]
[323515050,1714062639739,-500.0,0.0001099,2]
[323515051,1714062639749,-500.0,0.0001099,2]
[323515052,1714062639758,-500.0,0.0001099,2]
[323515053,1714062639768,-500.0,0.0001099,2]
[323515054,1714062639777,-3035.45,0.0001099,2]
[323515055,1714062639787,-1822.08,0.0001099,2]
[323515056,1714062639796,-500.0,0.0001099,2]
[323515057,1714062639806,-500.0,0.0001099,2]
[323515058,1714062639815,-1450.09,0.0001099,2]
[323515059,1714062639825,-500.0,0.0001099,2]
[323515060,1714062639836,-615.93,0.0001099,2]
[323515061,1714062639846,-500.0,0.0001099,2]
[323515062,1714062639860,-1987.4,0.0001099,2]
[323515063,1714062639870,-506.18,0.0001099,2]
[323515064,1714062639879,-1333.68,0.0001099,2]
[323515065,1714062639890,-500.0,0.0001099,2]
[323515066,1714062639899,-500.0,0.0001099,2]
[323515067,1714062639909,-1003.07,0.0001099,2]
[323515068,1714062639919,-583.65,0.0001099,2]
[323515069,1714062639929,-795.02,0.0001099,2]
[323515070,1714062639938,-1713.94,0.0001099,2]
[323515071,1714062639948,-500.0,0.0001099,2]
[323515072,1714062639959,-258.58,0.00010991,2]
[323515073,1714062639969,-500.0,0.00010991,2]
[323515074,1714062639977,-693.56,0.00010991,2]
[323515075,1714062639987,-500.0,0.00010991,2]
[323515076,1714062639995,-500.0,0.00010991,2]
[323515077,1714062640005,-500.0,0.00010991,2]
[323515078,1714062640015,-551.5,0.00010991,2]
[323515079,1714062640024,-500.0,0.00010991,2]
[323515080,1714062640033,-500.0,0.00010991,2]
[323515081,1714062640043,-500.0,0.00010991,2]
[323515082,1714062640052,-500.0,0.00010991,2]
[323515083,1714062640061,-528.55,0.00010991,2]
[323515084,1714062640070,-862.75,0.00010991,2]
[323515085,1714062640080,-500.0,0.00010991,2]
[323515086,1714062640089,-157.36800317,0.00010991,2]
[323515087,1714062640098,-542.02,0.00010991,2]
[323515088,1714062640110,-500.0,0.00010991,2]
[323515089,1714062640119,-608.5,0.00010991,2]
[323515090,1714062640129,-803.28,0.00010991,2]
[323515091,1714062640138,-500.0,0.00010991,2]
[323515092,1714062640147,-500.0,0.00010991,2]
[323515093,1714062640156,-585.18,0.00010991,2]
[323515094,1714062640166,-543.43,0.00010991,2]
[323515095,1714062640175,-500.0,0.00010991,2]
[323515096,1714062640185,-500.0,0.00010991,2]
[323515097,1714062640194,-508.69,0.00010991,2]
[323515098,1714062640203,-939.16,0.00010991,2]
[323515099,1714062640213,-500.0,0.00010991,2]
[323515100,1714062640223,-500.0,0.00010991,2]
[323515101,1714062640232,-500.0,0.00010991,2]
[323515102,1714062640242,-500.0,0.00010991,2]
[323515103,1714062640251,-500.0,0.00010991,2]
[323515104,1714062640261,-500.0,0.00010991,2]
[323515105,1714062640271,-560.64,0.00010991,2]
[323515106,1714062640280,-500.0,0.00010991,2]
[323515107,1714062640289,-500.0,0.00010991,2]
[323515108,1714062640299,-500.0,0.00010991,2]
[323515109,1714062640308,-458.58,0.00010991,2]
[323515110,1714062640318,-500.0,0.00010991,2]
[323515111,1714062640327,-500.0,0.00010991,2]
[323515112,1714062640340,-500.0,0.00010991,2]
[323515113,1714062640360,-519.65,0.00010991,2]
[323515114,1714062640376,-500.0,0.00010991,2]
[323515115,1714062640386,-215.04,0.00010991,2]
[323515116,1714062640395,-500.0,0.00010991,2]
[323515117,1714062640405,-500.0,0.00010991,2]
[323515118,1714062640416,-500.0,0.00010991,2]
[323515119,1714062640426,-500.0,0.00010991,2]
[323515120,1714062640435,-500.0,0.00010991,2]
[323515121,1714062640445,-505.61125787,0.00010991,2]
[323515122,1714062640454,-500.0,0.00010991,2]
[323515123,1714062640464,-500.0,0.00010991,2]
[323515124,1714062640473,-500.0,0.00010991,2]
[323515125,1714062640483,-622.86,0.00010991,2]
[323515126,1714062640493,-500.0,0.00010991,2]
[323515127,1714062640502,-239.07825592,0.00010991,2]
[323515128,1714062640512,-500.0,0.00010991,2]
[323515129,1714062640521,-500.0,0.00010991,2]
[323515130,1714062640530,-287.23,0.00010991,2]
[323515131,1714062640540,-740.18,0.00010991,2]
[323515132,1714062640549,-933.61,0.00010991,2]
[323515133,1714062640558,-500.0,0.00010991,2]
[323515134,1714062640567,-500.0,0.00010991,2]
[323515135,1714062640576,-500.0,0.00010991,2]
[323515136,1714062640585,-500.0,0.00010991,2]
[323515137,1714062640594,-500.0,0.00010991,2]
[323515138,1714062640605,-500.0,0.00010991,2]
[323515139,1714062640615,-500.0,0.00010991,2]
[323515140,1714062640624,-500.0,0.00010991,2]
[323515141,1714062640634,-751.66,0.00010991,2]
[323515142,1714062640643,-500.0,0.00010991,2]
[323515143,1714062640653,-500.0,0.00010991,2]
[323515144,1714062640662,-500.0,0.00010991,2]
[323515145,1714062640671,-500.0,0.00010991,2]
[323515146,1714062640681,-500.0,0.00010991,2]
[323515147,1714062640690,-500.0,0.00010991,2]
[323515148,1714062640699,-500.0,0.00010991,2]
[323515149,1714062640709,-500.0,0.00010991,2]
[323515150,1714062640718,-500.0,0.00010991,2]
[323515151,1714062640727,-500.0,0.00010991,2]
[323515152,1714062640736,-665.28,0.00010991,2]
[323515153,1714062640746,-150.0,0.00010991,2]
[323515154,1714062640755,-442.44,0.00010991,2]
[323515155,1714062640765,-500.0,0.00010991,2]
[323515156,1714062640774,-500.0,0.00010991,2]
[323515157,1714062640783,-907.44,0.00010991,2]
[323515158,1714062640793,-500.0,0.00010991,2]
[323515159,1714062640802,-500.0,0.00010991,2]
[323515160,1714062640812,-500.0,0.00010991,2]
[323515161,1714062640822,-500.0,0.00010991,2]
[323515162,1714062640832,-500.0,0.00010991,2]
[323515163,1714062640842,-431.28,0.00010991,2]
[323515164,1714062640856,-663.93,0.00010991,2]
[323515165,1714062640865,-500.0,0.00010991,2]
[323515166,1714062640875,-500.0,0.00010991,2]
[323515167,1714062640884,-500.0,0.00010991,2]
[323515168,1714062640894,-500.0,0.00010991,2]
[323515169,1714062640903,-500.0,0.00010991,2]
[323515170,1714062640913,-500.0,0.00010991,2]
[323515171,1714062640922,-500.0,0.00010991,2]
[323515172,1714062640933,-500.0,0.00010991,2]
[323515173,1714062640943,-500.0,0.00010991,2]
[323515174,1714062640953,-500.0,0.00010991,2]
[323515175,1714062640963,-500.0,0.00010991,2]
[323515176,1714062640972,-501.1578786,0.00010991,2]
[323515177,1714062640982,-222.22,0.00010991,2]
[323515178,1714062640991,-500.0,0.00010991,2]
[323515179,1714062641000,-500.0,0.00010991,2]
[323515180,1714062641010,-500.0,0.00010991,2]
[323515181,1714062641019,-500.0,0.00010991,2]
[323515182,1714062641029,-500.0,0.00010991,2]
[323515183,1714062641038,-500.0,0.00010991,2]
[323515184,1714062641047,-500.0,0.00010991,2]
[323515185,1714062641056,-500.0,0.00010991,2]
[323515186,1714062641066,-500.0,0.00010991,2]
[323515187,1714062641075,-501.53910829,0.00010991,2]
[323515188,1714062641085,-500.0,0.00010991,2]
[323515189,1714062641094,-180.35401806,0.00010991,2]
[323515190,1714062641104,-512.69,0.00010991,2]
[323515191,1714062641113,-500.29748924,0.00010991,2]
[323515192,1714062641123,-500.0,0.00010991,2]
[323515193,1714062641133,-500.0,0.00010991,2]
[323515194,1714062641142,-501.01367022,0.00010991,2]
[323515195,1714062641152,-500.0,0.00010991,2]
[323515196,1714062641161,-500.64091805,0.00010991,2]
[323515197,1714062641170,-502.05778128,0.00010991,2]
[323515198,1714062641179,-502.01349116,0.00010991,2]
[323515199,1714062641189,-500.0,0.00010991,2]
[323515200,1714062641198,-500.0,0.00010991,2]
[323515201,1714062641207,-501.19074427,0.00010991,2]
[323515202,1714062641216,-4307.42,0.00010991,2]
[323515203,1714062641225,-500.0,0.00010991,2]
[323515204,1714062641234,-705.33,0.00010991,2]
[323515205,1714062641243,-529.96706659,0.00010991,2]
[323515206,1714062641252,-239.75,0.00010991,2]
[323515207,1714062641261,-808.52,0.00010991,2]
[323515208,1714062641270,-580.14669754,0.00010991,2]
[323515209,1714062641279,-500.0,0.00010991,2]
[323515210,1714062641288,-500.0,0.00010991,2]
[323515211,1714062641297,-500.0,0.00010991,2]
[323515212,1714062641306,-504.49335913,0.00010991,2]
[323515213,1714062641315,-500.0,0.00010991,2]
[323515214,1714062641325,-641.46,0.00010991,2]
[323515215,1714062641334,-717.99,0.00010991,2]
[323515216,1714062641343,-500.0,0.00010991,2]
[323515217,1714062641353,-500.0,0.00010991,2]
[323515218,1714062641362,-518.06273328,0.00010991,2]
[323515219,1714062641371,-571.58284344,0.00010991,2]
[323515220,1714062641380,-703.41,0.00010991,2]
[323515221,1714062641389,-500.0,0.00010991,2]
[323515222,1714062641398,-500.0,0.00010991,2]
[323515223,1714062641407,-707.72,0.00010991,2]
[323515224,1714062641416,-500.0,0.00010991,2]
[323515225,1714062641426,-500.0,0.00010991,2]
[323515226,1714062641435,-500.0,0.00010991,2]
[323515227,1714062641444,-501.33957179,0.00010991,2]
[323515228,1714062641454,-500.0,0.00010991,2]
[323515229,1714062641463,-500.0,0.00010991,2]
[323515230,1714062641472,-9481.65,0.00010991,2]
[323515231,1714062641481,-500.0,0.00010991,2]
[323515232,1714062641491,-500.0,0.00010991,2]
[323515233,1714062641500,-500.0,0.00010991,2]
[323515234,1714062641510,-500.0,0.00010991,2]
[323515235,1714062641518,-388.55946281,0.00010991,2]
[323515236,1714062641527,-500.0,0.00010991,2]
[323515237,1714062641537,-500.0,0.00010991,2]
[323515238,1714062641546,-500.0,0.00010991,2]
[323515239,1714062641559,-500.0,0.00010991,2]
[323515240,1714062641568,-500.0,0.00010991,2]
[323515241,1714062641577,-4633.63,0.00010991,2]
[323515242,1714062641586,-500.0,0.00010991,2]
[323515243,1714062641595,-949.77,0.00010991,2]
[323515244,1714062641606,-500.0,0.00010991,2]
[323515245,1714062641615,-500.0,0.00010991,2]
[323515246,1714062641624,-959.2,0.00010991,2]
[323515247,1714062641633,-500.0,0.00010991,2]
[323515248,1714062641643,-500.0,0.00010991,2]
[323515249,1714062641652,-500.0,0.00010991,2]
[323515250,1714062641661,-500.0,0.00010991,2]
[323515251,1714062641670,-500.0,0.00010991,2]
[323515252,1714062641680,-500.0,0.00010991,2]
[323515253,1714062641689,-489.30627906,0.00010991,2]
[323515254,1714062641698,-500.0,0.00010991,2]
[323515255,1714062641708,-24576.39,0.00010991,2]
[323515256,1714062641717,-500.0,0.00010991,2]
[323515257,1714062641727,-500.0,0.00010991,2]
[323515258,1714062641927,-500.0,0.00010991,2]
[323515259,1714062641939,-500.0,0.00010991,2]
[323515260,1714062641951,-500.0,0.00010991,2]
[323515261,1714062641961,-531.67,0.00010991,2]
[323515262,1714062641972,-500.0,0.00010991,2]
[323515263,1714062641982,-2999.29,0.00010991,2]
[323515264,1714062641992,-500.0,0.00010991,2]
[323515265,1714062642003,-500.0,0.00010991,2]
[323515266,1714062642013,-585.03,0.00010991,2]
[323515267,1714062642023,-1007.84,0.00010991,2]
[323515268,1714062642035,-504.95385244,0.00010991,2]
[323515269,1714062642046,-608.96,0.00010991,2]
[323515270,1714062642057,-448.86910571,0.00010991,2]
[323515271,1714062642068,-1879.53,0.00010991,2]
[323515272,1714062642079,-588.96,0.00010991,2]
[323515273,1714062642089,-500.0,0.00010991,2]
[323515274,1714062642100,-500.0,0.00010991,2]
[323515275,1714062642115,-503.18073118,0.00010991,2]
[323515276,1714062642129,-500.0,0.00010991,2]
[323515277,1714062642140,-500.0,0.00010991,2]
[323515278,1714062642151,-543.78913507,0.00010991,2]
[323515279,1714062642161,-500.0,0.00010991,2]
[323515280,1714062642172,-500.0,0.00010991,2]
[323515281,1714062642183,-1078.57,0.00010991,2]
[323515282,1714062642193,-500.27743837,0.00010991,2]
[323515283,1714062642204,-500.0,0.00010991,2]
[323515284,1714062642215,-500.58164907,0.00010991,2]
[323515285,1714062642225,-500.0,0.00010991,2]
[323515286,1714062642235,-1535.0,0.00010991,2]
[323515287,1714062642244,-500.0,0.00010991,2]
[323515288,1714062642254,-500.0,0.00010991,2]
[323515289,1714062642264,-500.0,0.00010991,2]
[323515290,1714062642273,-4072.05,0.00010991,2]
[323515291,1714062642285,-500.0,0.00010991,2]
[323515292,1714062642296,-639.2455441,0.00010991,2]
[323515293,1714062642306,-500.85893689,0.00010991,2]
[323515294,1714062642315,-516.91,0.00010991,2]
[323515295,1714062642325,-967.3,0.00010991,2]
[323515296,1714062642334,-3190.06,0.00010991,2]
[323515297,1714062642344,-500.0,0.00010991,2]
[323515298,1714062642357,-500.0,0.00010991,2]
[323515299,1714062642367,-500.0,0.00010991,2]
[323515300,1714062642377,-500.0,0.00010991,2]
[323515301,1714062642387,-526.95,0.00010991,2]
[323515302,1714062642397,-500.0,0.00010991,2]
[323515303,1714062642406,-1391.72,0.00010991,2]
[323515304,1714062642416,-500.0,0.00010991,2]
[323515305,1714062642425,-979.73,0.00010991,2]
[323515306,1714062642435,-500.0,0.00010991,2]
[323515307,1714062642444,-573.0,0.00010991,2]
[323515308,1714062642453,-500.0,0.00010991,2]
[323515309,1714062642462,-500.0,0.00010991,2]
[323515310,1714062642472,-500.0,0.00010991,2]
[323515311,1714062642482,-893.01,0.00010991,2]
[323515312,1714062642491,-500.0,0.00010991,2]
[323515313,1714062642501,-500.0,0.00010991,2]
[323515314,1714062642510,-500.0,0.00010991,2]
[323515316,1714062642519,-346.26841891,0.00010991,2]
[323515317,1714062642528,-500.0,0.00010991,2]
[323515318,1714062642537,-704.66,0.00010991,2]
[323515319,1714062642547,-553.79,0.00010991,2]
[323515320,1714062642557,-475.48,0.00010991,2]
[323515321,1714062642566,-500.0,0.00010991,2]
[323515323,1714062642575,-506.58555054,0.00010991,2]
[323515324,1714062642584,-500.0,0.00010991,2]
[323515326,1714062642593,-500.0,0.00010991,2]
[323515328,1714062642605,-472.3308992,0.00010991,2]
[323515330,1714062642615,-1850.58,0.00010991,2]
[323515332,1714062642624,-595.33167179,0.00010991,2]
[323515334,1714062642633,-500.0,0.00010991,2]
[323515336,1714062642642,-635.27661698,0.00010991,2]
[323515338,1714062642652,-500.0,0.00010991,2]
[323515340,1714062642661,-500.0,0.00010991,2]
[323515342,1714062642670,-500.0,0.00010991,2]
[323515344,1714062642679,-3297.58,0.00010991,2]
[323515345,1714062642688,-501.50920273,0.00010991,2]
[323515348,1714062642697,-500.0,0.00010991,2]
[323515349,1714062642706,-500.0,0.00010991,2]
[323515351,1714062642715,-500.0,0.00010991,2]
[323515353,1714062642724,-2021.3,0.00010991,2]
[323515355,1714062642734,-501.24630836,0.00010991,2]
[323515357,1714062642743,-500.0,0.00010991,2]
[323515359,1714062642753,-500.0,0.00010991,2]
[323515361,1714062642762,-575.83,0.00010991,2]
[323515362,1714062642771,-504.34733002,0.00010991,2]
[323515363,1714062642780,-500.0,0.00010991,2]
[323515364,1714062642789,-500.0,0.00010991,2]
[323515365,1714062642799,-500.0,0.00010991,2]
[323515366,1714062642808,-563.15617129,0.00010991,2]
[323515367,1714062642817,-500.0,0.00010991,2]
[323515368,1714062642826,-576.79,0.00010991,2]
[323515369,1714062642836,-500.0,0.00010991,2]
[323515370,1714062642846,-717.19,0.00010991,2]
[323515371,1714062642858,-500.0,0.00010991,2]